[Event "Titled Tuesday Blitz December 06 Early 2022"]
[White "Goroshkov, Maksym"]
[Black "Donskov, Anatoly"]
[WhiteFideId "14142716"]
[BlackFideId "24143413"]
[WhiteElo "2258"]
[BlackElo "2219"]
[Result "1-0"]
[Round "03"]
[TimeControl "180+1"]
[Date "2022.12.07"]
[WhiteClock "0:00:17"]
[BlackClock "0:00:02"]

1. e4 {[%clk 0:03:00]}  c5 {[%clk 0:02:59]} 2. c3 {[%clk 0:02:59]}  d5 {[%clk 0:02:58]} 3. exd5 {[%clk 0:03:00]}  Qxd5 {[%clk 0:02:59]} 4. d4 {[%clk 0:03:00]}  Nf6 {[%clk 0:02:59]} 5. Nf3 {[%clk 0:03:00]}  e6 {[%clk 0:02:59]} 6. Be2 {[%clk 0:03:00]}  Be7 {[%clk 0:02:59]} 7. O-O {[%clk 0:02:59]}  Nc6 {[%clk 0:02:58]} 8. Be3 {[%clk 0:02:58]}  cxd4 {[%clk 0:02:59]} 9. cxd4 {[%clk 0:02:59]}  b6 {[%clk 0:02:59]} 10. Nc3 {[%clk 0:03:00]}  Qd6 {[%clk 0:02:59]} 11. Ne5 {[%clk 0:02:58]}  Bb7 {[%clk 0:02:24]} 12. Bf3 {[%clk 0:02:55]}  Nd5 {[%clk 0:01:55]} 13. Nb5 {[%clk 0:02:31]}  Qd8 {[%clk 0:01:46]} 14. Bxd5 {[%clk 0:02:27]}  exd5 {[%clk 0:01:47]} 15. Bf4 {[%clk 0:02:23]}  O-O {[%clk 0:01:40]} 16. Qg4 {[%clk 0:02:22]}  Nxe5 {[%clk 0:01:30]} 17. Bxe5 {[%clk 0:02:19]}  Bf6 {[%clk 0:01:30]} 18. Nd6 {[%clk 0:02:02]}  Ba6 {[%clk 0:01:23]} 19. Rfe1 {[%clk 0:01:54]}  Bd3 {[%clk 0:01:07]} 20. Re3 {[%clk 0:01:49]}  Bg6 {[%clk 0:01:07]} 21. Rae1 {[%clk 0:01:40]}  Be7 {[%clk 0:00:36]} 22. Nf5 {[%clk 0:01:35]}  Bf6 {[%clk 0:00:35]} 23. Rf3 {[%clk 0:01:22]}  Bxe5 {[%clk 0:00:31]} 24. dxe5 {[%clk 0:01:21]}  Bxf5 {[%clk 0:00:31]} 25. Qxf5 {[%clk 0:01:20]}  Qe7 {[%clk 0:00:28]} 26. Rh3 {[%clk 0:01:14]}  g6 {[%clk 0:00:26]} 27. Qf4 {[%clk 0:01:13]}  f5 {[%clk 0:00:20]} 28. e6 {[%clk 0:01:06]}  Rad8 {[%clk 0:00:20]} 29. Qd4 {[%clk 0:01:04]}  Rfe8 {[%clk 0:00:17]} 30. Rhe3 {[%clk 0:01:03]}  Qg7 {[%clk 0:00:17]} 31. Qd2 {[%clk 0:00:49]}  d4 {[%clk 0:00:17]} 32. R3e2 {[%clk 0:00:36]}  d3 {[%clk 0:00:17]} 33. Re3 {[%clk 0:00:36]}  Qf6 {[%clk 0:00:17]} 34. Rxd3 {[%clk 0:00:33]}  Rxd3 {[%clk 0:00:17]} 35. Qxd3 {[%clk 0:00:34]}  Rxe6 {[%clk 0:00:17]} 36. Qd5 {[%clk 0:00:33]}  Kf7 {[%clk 0:00:17]} 37. h4 {[%clk 0:00:33]}  Qe7 {[%clk 0:00:16]} 38. g3 {[%clk 0:00:24]}  Kf6 {[%clk 0:00:17]} 39. Qd4+ {[%clk 0:00:25]}  Kf7 {[%clk 0:00:16]} 40. Qc4 {[%clk 0:00:24]}  Kf6 {[%clk 0:00:17]} 41. Qc3+ {[%clk 0:00:24]}  Kf7 {[%clk 0:00:17]} 42. Rxe6 {[%clk 0:00:23]}  Kxe6 {[%clk 0:00:17]} 43. Qh8 {[%clk 0:00:22]}  Kd7 {[%clk 0:00:15]} 44. Qb8 {[%clk 0:00:21]}  Kc6 {[%clk 0:00:14]} 45. Qc8+ {[%clk 0:00:20]}  Kd6 {[%clk 0:00:14]} 46. Qc3 {[%clk 0:00:19]}  a5 {[%clk 0:00:13]} 47. b4 {[%clk 0:00:18]}  Kd7 {[%clk 0:00:10]} 48. bxa5 {[%clk 0:00:18]}  bxa5 {[%clk 0:00:10]} 49. Qxa5 {[%clk 0:00:19]}  Qe4 {[%clk 0:00:09]} 50. Qa7+ {[%clk 0:00:19]}  Ke6 {[%clk 0:00:09]} 51. Qa6+ {[%clk 0:00:18]}  Kf7 {[%clk 0:00:08]} 52. Qa7+ {[%clk 0:00:18]}  Kg8 {[%clk 0:00:07]} 53. Qa5 {[%clk 0:00:16]}  Qb1+ {[%clk 0:00:06]} 54. Kh2 {[%clk 0:00:16]}  Qc2 {[%clk 0:00:05]} 55. Qd5+ {[%clk 0:00:16]}  Kg7 {[%clk 0:00:05]} 56. Qd4+ {[%clk 0:00:17]}  Kh6 {[%clk 0:00:04]} 57. a4 {[%clk 0:00:17]}  g5 {[%clk 0:00:02]} 58. Qf6+ {[%clk 0:00:16]}  Kh5 {[%clk 0:00:02]} 59. Qxg5# {[%clk 0:00:17]} 1-0


[Site "https://www.chess.com"]

[Event "Titled Tuesday Blitz December 06 Early 2022"]
[White "HSH1987"]
[Black "De Souza, Cristiano Gomes"]
[BlackFideId "2151758"]
[WhiteElo "2522"]
[BlackElo "2068"]
[Result "1-0"]
[Round "03"]
[TimeControl "180+1"]
[Date "2022.12.07"]
[WhiteClock "0:01:14"]
[BlackClock "0:01:53"]

1. Nf3 {[%clk 0:03:00]}  Nf6 {[%clk 0:02:55]} 2. g3 {[%clk 0:03:00]}  g6 {[%clk 0:02:55]} 3. Bg2 {[%clk 0:03:01]}  Bg7 {[%clk 0:02:55]} 4. O-O {[%clk 0:03:02]}  O-O {[%clk 0:02:55]} 5. d4 {[%clk 0:03:00]}  d6 {[%clk 0:02:55]} 6. b3 {[%clk 0:03:00]}  Nc6 {[%clk 0:02:56]} 7. Bb2 {[%clk 0:03:00]}  Bf5 {[%clk 0:02:56]} 8. Nbd2 {[%clk 0:02:58]}  Ne4 {[%clk 0:02:56]} 9. c4 {[%clk 0:02:53]}  Nxd2 {[%clk 0:02:56]} 10. Qxd2 {[%clk 0:02:53]}  Be4 {[%clk 0:02:55]} 11. d5 {[%clk 0:02:52]}  Bxf3 {[%clk 0:02:52]} 12. exf3 {[%clk 0:02:44]}  Bxb2 {[%clk 0:02:46]} 13. Qxb2 {[%clk 0:02:45]}  Ne5 {[%clk 0:02:43]} 14. f4 {[%clk 0:02:43]}  Nd7 {[%clk 0:02:43]} 15. Rfe1 {[%clk 0:02:43]}  Nf6 {[%clk 0:02:42]} 16. Bf3 {[%clk 0:02:42]}  Re8 {[%clk 0:02:42]} 17. Re2 {[%clk 0:02:41]}  Qd7 {[%clk 0:02:42]} 18. Rae1 {[%clk 0:02:41]}  c6 {[%clk 0:02:41]} 19. dxc6 {[%clk 0:02:40]}  bxc6 {[%clk 0:02:41]} 20. Kg2 {[%clk 0:02:35]}  h5 {[%clk 0:02:38]} 21. Qc2 {[%clk 0:02:12]}  Kg7 {[%clk 0:02:29]} 22. Re3 {[%clk 0:02:07]}  Rac8 {[%clk 0:02:25]} 23. Qe2 {[%clk 0:02:05]}  Rc7 {[%clk 0:02:23]} 24. h3 {[%clk 0:02:01]}  Qc8 {[%clk 0:02:23]} 25. Qb2 {[%clk 0:01:58]}  Qd8 {[%clk 0:02:17]} 26. g4 {[%clk 0:01:56]}  hxg4 {[%clk 0:02:16]} 27. hxg4 {[%clk 0:01:57]}  Kg8 {[%clk 0:02:16]} 28. g5 {[%clk 0:01:56]}  Nh7 {[%clk 0:02:14]} 29. Bg4 {[%clk 0:01:51]}  e5 {[%clk 0:02:14]} 30. Rh1 {[%clk 0:01:35]}  Rce7 {[%clk 0:02:08]} 31. Reh3 {[%clk 0:01:32]}  Nf8 {[%clk 0:02:03]} 32. Rh8+ {[%clk 0:01:26]}  Kg7 {[%clk 0:02:00]} 33. Qc3 {[%clk 0:01:26]}  d5 {[%clk 0:01:59]} 34. Qh3 {[%clk 0:01:24]}  f6 {[%clk 0:01:53]} 35. Qh7+ {[%clk 0:01:14]} 1-0


[Site "https://www.chess.com"]

[Event "Titled Tuesday Blitz December 06 Early 2022"]
[White "Hirneise, Jens"]
[Black "Wojtaszek, Radoslaw"]
[WhiteFideId "24614734"]
[BlackFideId "1118358"]
[WhiteElo "2345"]
[BlackElo "2605"]
[Result "0-1"]
[Round "03"]
[TimeControl "180+1"]
[Date "2022.12.07"]
[WhiteClock "0:00:57"]
[BlackClock "0:01:21"]

1. c4 {[%clk 0:02:59]}  e5 {[%clk 0:02:55]} 2. d3 {[%clk 0:02:58]}  Nc6 {[%clk 0:02:52]} 3. Nf3 {[%clk 0:02:58]}  Nf6 {[%clk 0:02:51]} 4. Bd2 {[%clk 0:02:55]}  Bc5 {[%clk 0:02:42]} 5. Nc3 {[%clk 0:02:53]}  O-O {[%clk 0:02:40]} 6. e3 {[%clk 0:02:53]}  d6 {[%clk 0:02:39]} 7. Be2 {[%clk 0:02:53]}  a5 {[%clk 0:02:37]} 8. O-O {[%clk 0:02:52]}  h6 {[%clk 0:02:36]} 9. a3 {[%clk 0:02:49]}  Bf5 {[%clk 0:02:35]} 10. Na4 {[%clk 0:02:45]}  e4 {[%clk 0:02:27]} 11. dxe4 {[%clk 0:02:41]}  Nxe4 {[%clk 0:02:28]} 12. Bc3 {[%clk 0:02:37]}  Qe7 {[%clk 0:02:24]} 13. Rc1 {[%clk 0:02:33]}  Rfe8 {[%clk 0:02:21]} 14. Nxc5 {[%clk 0:02:30]}  dxc5 {[%clk 0:02:21]} 15. Qa4 {[%clk 0:02:08]}  Rad8 {[%clk 0:02:16]} 16. Qb5 {[%clk 0:02:01]}  Rd6 {[%clk 0:02:09]} 17. Bxa5 {[%clk 0:01:48]}  Rg6 {[%clk 0:01:58]} 18. Kh1 {[%clk 0:01:44]}  Bd7 {[%clk 0:01:43]} 19. Qxb7 {[%clk 0:01:08]}  Nxa5 {[%clk 0:01:40]} 20. Qxc7 {[%clk 0:01:08]}  Bh3 {[%clk 0:01:22]} 21. Qxe7 {[%clk 0:01:00]}  Bxg2+ {[%clk 0:01:21]} 22. Kg1 {[%clk 0:00:58]}  Bxf3+ {[%clk 0:01:21]} 23. Qg5 {[%clk 0:00:57]}  Rxg5# {[%clk 0:01:21]} 0-1


[Site "https://www.chess.com"]

[Event "Titled Tuesday Blitz December 06 Early 2022"]
[White "Holt, Conrad"]
[Black "Stijve, Theo"]
[WhiteFideId "2034387"]
[BlackFideId "1331132"]
[WhiteElo "2592"]
[BlackElo "2256"]
[Result "1-0"]
[Round "03"]
[TimeControl "180+1"]
[Date "2022.12.07"]
[WhiteClock "0:00:06"]
[BlackClock "0:00:17"]

1. d4 {[%clk 0:03:00]}  d5 {[%clk 0:02:55]} 2. c4 {[%clk 0:03:01]}  e6 {[%clk 0:02:55]} 3. Nc3 {[%clk 0:03:01]}  Nf6 {[%clk 0:02:55]} 4. cxd5 {[%clk 0:03:01]}  exd5 {[%clk 0:02:55]} 5. Bg5 {[%clk 0:03:01]}  c6 {[%clk 0:02:53]} 6. e3 {[%clk 0:03:01]}  Be7 {[%clk 0:02:54]} 7. Bd3 {[%clk 0:03:01]}  O-O {[%clk 0:02:54]} 8. Nge2 {[%clk 0:03:00]}  Nbd7 {[%clk 0:02:50]} 9. Ng3 {[%clk 0:02:57]}  h6 {[%clk 0:02:32]} 10. Bf4 {[%clk 0:02:53]}  Re8 {[%clk 0:02:08]} 11. Nf5 {[%clk 0:02:53]}  Bf8 {[%clk 0:02:08]} 12. Qf3 {[%clk 0:02:46]}  Nb6 {[%clk 0:01:54]} 13. Be5 {[%clk 0:02:39]}  Bxf5 {[%clk 0:01:41]} 14. Qxf5 {[%clk 0:02:39]}  Bd6 {[%clk 0:01:42]} 15. Bxf6 {[%clk 0:02:07]}  Qxf6 {[%clk 0:01:42]} 16. Qh7+ {[%clk 0:02:07]}  Kf8 {[%clk 0:01:42]} 17. O-O {[%clk 0:02:06]}  g5 {[%clk 0:01:27]} 18. Ne2 {[%clk 0:01:57]}  Qg7 {[%clk 0:01:19]} 19. Qf5 {[%clk 0:01:56]}  Re6 {[%clk 0:01:19]} 20. Qg4 {[%clk 0:01:45]}  Rae8 {[%clk 0:01:12]} 21. b3 {[%clk 0:01:29]}  Nd7 {[%clk 0:01:10]} 22. Rad1 {[%clk 0:01:04]}  Nf6 {[%clk 0:01:01]} 23. Qf5 {[%clk 0:01:04]}  Ne4 {[%clk 0:01:01]} 24. Bxe4 {[%clk 0:00:59]}  Rxe4 {[%clk 0:00:56]} 25. Qd7 {[%clk 0:00:56]}  Qf6 {[%clk 0:00:47]} 26. Qxb7 {[%clk 0:00:54]}  R8e7 {[%clk 0:00:47]} 27. Qc8+ {[%clk 0:00:49]}  Kg7 {[%clk 0:00:47]} 28. Rc1 {[%clk 0:00:47]}  Rc7 {[%clk 0:00:42]} 29. Qa6 {[%clk 0:00:43]}  h5 {[%clk 0:00:40]} 30. Nc3 {[%clk 0:00:32]}  Re6 {[%clk 0:00:35]} 31. Qd3 {[%clk 0:00:30]}  h4 {[%clk 0:00:32]} 32. Rfe1 {[%clk 0:00:20]}  h3 {[%clk 0:00:30]} 33. g3 {[%clk 0:00:19]}  g4 {[%clk 0:00:30]} 34. e4 {[%clk 0:00:19]}  dxe4 {[%clk 0:00:27]} 35. Rxe4 {[%clk 0:00:18]}  Qg6 {[%clk 0:00:27]} 36. Qe2 {[%clk 0:00:17]}  Rce7 {[%clk 0:00:26]} 37. Rxe6 {[%clk 0:00:11]}  Rxe6 {[%clk 0:00:27]} 38. Qd1 {[%clk 0:00:12]}  Bb4 {[%clk 0:00:26]} 39. d5 {[%clk 0:00:11]}  cxd5 {[%clk 0:00:25]} 40. Qd4+ {[%clk 0:00:11]}  f6 {[%clk 0:00:23]} 41. Qxb4 {[%clk 0:00:10]}  Qc2 {[%clk 0:00:20]} 42. Qxg4+ {[%clk 0:00:09]}  Kf8 {[%clk 0:00:19]} 43. Qd1 {[%clk 0:00:09]}  Qb2 {[%clk 0:00:17]} 44. Nxd5 {[%clk 0:00:09]}  Qe5 {[%clk 0:00:16]} 45. Nf4 {[%clk 0:00:09]}  Qe4 {[%clk 0:00:17]} 46. Nxe6+ {[%clk 0:00:09]}  Ke7 {[%clk 0:00:16]} 47. Nf4 {[%clk 0:00:08]}  f5 {[%clk 0:00:16]} 48. Rc7+ {[%clk 0:00:07]}  Kf6 {[%clk 0:00:17]} 49. Qd6+ {[%clk 0:00:07]}  Kg5 {[%clk 0:00:17]} 50. Qg6# {[%clk 0:00:06]} 1-0


[Site "https://www.chess.com"]

[Event "Titled Tuesday Blitz December 06 Early 2022"]
[White "Itgelt, Khuyagtsogt"]
[Black "Sargissyan, Sargis"]
[WhiteFideId "4902912"]
[BlackFideId "13303210"]
[WhiteElo "2227"]
[BlackElo "2109"]
[Result "1-0"]
[Round "03"]
[TimeControl "180+1"]
[Date "2022.12.07"]
[WhiteClock "0:00:04"]
[BlackClock "0:00:08"]

1. d4 {[%clk 0:02:57]}  Nf6 {[%clk 0:02:59]} 2. Nf3 {[%clk 0:02:58]}  g6 {[%clk 0:03:00]} 3. g3 {[%clk 0:02:56]}  Bg7 {[%clk 0:03:01]} 4. Bg2 {[%clk 0:02:57]}  O-O {[%clk 0:03:01]} 5. O-O {[%clk 0:02:58]}  d5 {[%clk 0:03:00]} 6. b3 {[%clk 0:02:57]}  c5 {[%clk 0:02:46]} 7. e3 {[%clk 0:02:47]}  cxd4 {[%clk 0:02:41]} 8. exd4 {[%clk 0:02:47]}  Nc6 {[%clk 0:02:39]} 9. Bb2 {[%clk 0:02:48]}  Bg4 {[%clk 0:02:39]} 10. h3 {[%clk 0:02:47]}  Bxf3 {[%clk 0:02:39]} 11. Bxf3 {[%clk 0:02:44]}  e6 {[%clk 0:02:13]} 12. Re1 {[%clk 0:02:33]}  Re8 {[%clk 0:02:10]} 13. Kg2 {[%clk 0:02:24]}  Rc8 {[%clk 0:02:08]} 14. Nd2 {[%clk 0:02:21]}  Nb4 {[%clk 0:02:04]} 15. Re2 {[%clk 0:01:25]}  Nxc2 {[%clk 0:01:58]} 16. Rc1 {[%clk 0:01:24]}  Nb4 {[%clk 0:01:57]} 17. Rxc8 {[%clk 0:01:15]}  Qxc8 {[%clk 0:01:57]} 18. Qb1 {[%clk 0:01:08]}  Qc7 {[%clk 0:01:30]} 19. a3 {[%clk 0:01:06]}  Nc6 {[%clk 0:01:27]} 20. b4 {[%clk 0:01:05]}  Nd7 {[%clk 0:01:24]} 21. Nb3 {[%clk 0:01:01]}  Rc8 {[%clk 0:01:23]} 22. Rc2 {[%clk 0:01:01]}  Qb6 {[%clk 0:01:21]} 23. Qc1 {[%clk 0:00:55]}  a5 {[%clk 0:01:03]} 24. Nxa5 {[%clk 0:00:46]}  Bxd4 {[%clk 0:01:03]} 25. Nxc6 {[%clk 0:00:34]}  bxc6 {[%clk 0:01:00]} 26. Bxd4 {[%clk 0:00:30]}  Qxd4 {[%clk 0:01:01]} 27. Rxc6 {[%clk 0:00:31]}  Rxc6 {[%clk 0:01:00]} 28. Qxc6 {[%clk 0:00:32]}  Ne5 {[%clk 0:01:01]} 29. Qc2 {[%clk 0:00:23]}  Qa1 {[%clk 0:00:42]} 30. Qb3 {[%clk 0:00:19]}  d4 {[%clk 0:00:29]} 31. b5 {[%clk 0:00:18]}  d3 {[%clk 0:00:28]} 32. b6 {[%clk 0:00:16]}  d2 {[%clk 0:00:28]} 33. b7 {[%clk 0:00:15]}  Nxf3 {[%clk 0:00:24]} 34. b8=Q+ {[%clk 0:00:15]}  Kg7 {[%clk 0:00:23]} 35. Qd6 {[%clk 0:00:08]}  Ne1+ {[%clk 0:00:19]} 36. Kh2 {[%clk 0:00:08]}  Nf3+ {[%clk 0:00:14]} 37. Qxf3 {[%clk 0:00:08]}  Qe1 {[%clk 0:00:09]} 38. Qd4+ {[%clk 0:00:05]}  Kg8 {[%clk 0:00:08]} 39. Qfd3 {[%clk 0:00:04]} 1-0


[Site "https://www.chess.com"]

[Event "Titled Tuesday Blitz December 06 Early 2022"]
[White "Jaskolka, Tomasz"]
[Black "Martin, Lewis"]
[WhiteFideId "1170791"]
[BlackFideId "410551"]
[WhiteElo "2126"]
[BlackElo "2145"]
[Result "1-0"]
[Round "03"]
[TimeControl "180+1"]
[Date "2022.12.07"]
[WhiteClock "0:00:04"]
[BlackClock "0:00:06"]

1. e4 {[%clk 0:02:58]}  c5 {[%clk 0:02:59]} 2. Nf3 {[%clk 0:02:58]}  d6 {[%clk 0:02:59]} 3. Bb5+ {[%clk 0:02:57]}  Nd7 {[%clk 0:02:59]} 4. d4 {[%clk 0:02:56]}  cxd4 {[%clk 0:02:58]} 5. Qxd4 {[%clk 0:02:57]}  Nf6 {[%clk 0:02:56]} 6. O-O {[%clk 0:02:57]}  a6 {[%clk 0:02:54]} 7. Ba4 {[%clk 0:02:54]}  g6 {[%clk 0:02:52]} 8. Nc3 {[%clk 0:02:44]}  Bg7 {[%clk 0:02:51]} 9. Bg5 {[%clk 0:02:35]}  O-O {[%clk 0:02:50]} 10. Qd2 {[%clk 0:02:32]}  Nc5 {[%clk 0:02:39]} 11. Rfe1 {[%clk 0:02:13]}  b5 {[%clk 0:02:33]} 12. Bb3 {[%clk 0:02:13]}  b4 {[%clk 0:02:32]} 13. Nd5 {[%clk 0:02:00]}  Nfxe4 {[%clk 0:02:11]} 14. Nxe7+ {[%clk 0:01:46]}  Kh8 {[%clk 0:01:58]} 15. Qd5 {[%clk 0:01:32]}  Be6 {[%clk 0:01:35]} 16. Nxg6+ {[%clk 0:01:02]}  hxg6 {[%clk 0:01:22]} 17. Bxd8 {[%clk 0:01:01]}  Bxd5 {[%clk 0:01:21]} 18. Bxd5 {[%clk 0:01:02]}  Raxd8 {[%clk 0:01:18]} 19. Bxe4 {[%clk 0:01:01]}  Nxe4 {[%clk 0:01:18]} 20. Rxe4 {[%clk 0:01:02]}  Bxb2 {[%clk 0:01:16]} 21. Rd1 {[%clk 0:01:03]}  Bc3 {[%clk 0:01:14]} 22. g3 {[%clk 0:00:54]}  Kg7 {[%clk 0:01:11]} 23. Re7 {[%clk 0:00:53]}  d5 {[%clk 0:01:04]} 24. Kg2 {[%clk 0:00:52]}  Rd6 {[%clk 0:00:57]} 25. Rb7 {[%clk 0:00:48]}  Re8 {[%clk 0:00:54]} 26. Nd4 {[%clk 0:00:45]}  Re4 {[%clk 0:00:50]} 27. Nb3 {[%clk 0:00:40]}  Re2 {[%clk 0:00:49]} 28. Rd3 {[%clk 0:00:31]}  Rxc2 {[%clk 0:00:45]} 29. Rf3 {[%clk 0:00:30]}  Rf6 {[%clk 0:00:42]} 30. Rxf6 {[%clk 0:00:31]}  Bxf6 {[%clk 0:00:39]} 31. Rxb4 {[%clk 0:00:31]}  Rxa2 {[%clk 0:00:38]} 32. Rb7 {[%clk 0:00:27]}  a5 {[%clk 0:00:37]} 33. Rb5 {[%clk 0:00:23]}  a4 {[%clk 0:00:37]} 34. Nc1 {[%clk 0:00:24]}  Rc2 {[%clk 0:00:36]} 35. Nd3 {[%clk 0:00:24]}  a3 {[%clk 0:00:35]} 36. Ra5 {[%clk 0:00:18]}  a2 {[%clk 0:00:34]} 37. Nb4 {[%clk 0:00:19]}  Rb2 {[%clk 0:00:16]} 38. Nxa2 {[%clk 0:00:18]}  Bd4 {[%clk 0:00:16]} 39. h4 {[%clk 0:00:15]}  Bxf2 {[%clk 0:00:16]} 40. Kh3 {[%clk 0:00:14]}  Bb6 {[%clk 0:00:16]} 41. Ra6 {[%clk 0:00:14]}  d4 {[%clk 0:00:15]} 42. Nc1 {[%clk 0:00:12]}  Bc7 {[%clk 0:00:14]} 43. Rc6 {[%clk 0:00:12]}  Be5 {[%clk 0:00:13]} 44. Nd3 {[%clk 0:00:12]}  Re2 {[%clk 0:00:10]} 45. Rc5 {[%clk 0:00:12]}  Bd6 {[%clk 0:00:10]} 46. Rd5 {[%clk 0:00:12]}  Bb8 {[%clk 0:00:09]} 47. Rxd4 {[%clk 0:00:12]}  Re3 {[%clk 0:00:09]} 48. Nf4 {[%clk 0:00:12]}  Kh6 {[%clk 0:00:07]} 49. Kg4 {[%clk 0:00:12]}  f5+ {[%clk 0:00:07]} 50. Kh3 {[%clk 0:00:11]}  Re4 {[%clk 0:00:07]} 51. Rxe4 {[%clk 0:00:10]}  fxe4 {[%clk 0:00:08]} 52. Ne6 {[%clk 0:00:06]}  Be5 {[%clk 0:00:08]} 53. Kg2 {[%clk 0:00:05]}  Kh5 {[%clk 0:00:08]} 54. Kh3 {[%clk 0:00:04]}  e3 {[%clk 0:00:08]} 55. g4+ {[%clk 0:00:04]}  Kh6 {[%clk 0:00:08]} 56. Kg2 {[%clk 0:00:05]}  g5 {[%clk 0:00:08]} 57. Nxg5 {[%clk 0:00:04]}  Kg6 {[%clk 0:00:07]} 58. Kf3 {[%clk 0:00:05]}  Bf6 {[%clk 0:00:07]} 59. Ne4 {[%clk 0:00:01]}  Bd4 {[%clk 0:00:07]} 60. h5+ {[%clk 0:00:01]}  Kh6 {[%clk 0:00:06]} 61. Ng3 {[%clk 0:00:02]}  Kg5 {[%clk 0:00:06]} 62. Nf5 {[%clk 0:00:02]}  Bc5 {[%clk 0:00:06]} 63. Nxe3 {[%clk 0:00:03]}  Bxe3 {[%clk 0:00:05]} 64. Kxe3 {[%clk 0:00:04]}  Kxg4 {[%clk 0:00:06]} 65. h6 {[%clk 0:00:04]} 1-0


[Site "https://www.chess.com"]

[Event "Titled Tuesday Blitz December 06 Early 2022"]
[White "Jiganchine, Roman"]
[Black "Gheorghiu, Calin"]
[WhiteFideId "2603667"]
[BlackFideId "1200305"]
[WhiteElo "2321"]
[BlackElo "2224"]
[Result "1-0"]
[Round "03"]
[TimeControl "180+1"]
[Date "2022.12.07"]
[WhiteClock "0:00:07"]
[BlackClock "0:00:02"]

1. e4 {[%clk 0:02:58]}  c5 {[%clk 0:02:59]} 2. Nf3 {[%clk 0:02:58]}  d6 {[%clk 0:02:59]} 3. Bb5+ {[%clk 0:02:58]}  Nd7 {[%clk 0:02:58]} 4. a4 {[%clk 0:02:57]}  a6 {[%clk 0:02:58]} 5. Be2 {[%clk 0:02:57]}  g6 {[%clk 0:02:58]} 6. d4 {[%clk 0:02:49]}  cxd4 {[%clk 0:02:58]} 7. Qxd4 {[%clk 0:02:45]}  Ngf6 {[%clk 0:02:56]} 8. e5 {[%clk 0:02:44]}  dxe5 {[%clk 0:02:53]} 9. Nxe5 {[%clk 0:02:44]}  Nxe5 {[%clk 0:02:53]} 10. Qxe5 {[%clk 0:02:43]}  Bg7 {[%clk 0:02:54]} 11. O-O {[%clk 0:02:37]}  O-O {[%clk 0:02:53]} 12. Nc3 {[%clk 0:02:37]}  Bf5 {[%clk 0:02:47]} 13. Bf3 {[%clk 0:02:26]}  Nd7 {[%clk 0:02:45]} 14. Qg3 {[%clk 0:02:20]}  Nc5 {[%clk 0:02:01]} 15. a5 {[%clk 0:02:08]}  Bxc2 {[%clk 0:01:52]} 16. Be3 {[%clk 0:02:01]}  Nb3 {[%clk 0:01:50]} 17. Bb6 {[%clk 0:01:52]}  Qd7 {[%clk 0:01:39]} 18. Rae1 {[%clk 0:01:52]}  Nd2 {[%clk 0:01:34]} 19. Rc1 {[%clk 0:00:59]}  Nxf1 {[%clk 0:01:32]} 20. Rxf1 {[%clk 0:00:51]}  Rac8 {[%clk 0:01:22]} 21. Bg4 {[%clk 0:00:50]}  Bf5 {[%clk 0:01:19]} 22. Rd1 {[%clk 0:00:50]}  Bxg4 {[%clk 0:01:16]} 23. Rxd7 {[%clk 0:00:49]}  Bxd7 {[%clk 0:01:17]} 24. h4 {[%clk 0:00:49]}  h5 {[%clk 0:01:16]} 25. Nd5 {[%clk 0:00:48]}  Rfe8 {[%clk 0:01:11]} 26. Nc7 {[%clk 0:00:45]}  Rf8 {[%clk 0:01:11]} 27. Nd5 {[%clk 0:00:45]}  Rc1+ {[%clk 0:01:03]} 28. Kh2 {[%clk 0:00:45]}  e6 {[%clk 0:01:02]} 29. Qe3 {[%clk 0:00:38]}  Rd1 {[%clk 0:00:53]} 30. Nc3 {[%clk 0:00:36]}  Ra1 {[%clk 0:00:41]} 31. Ne4 {[%clk 0:00:33]}  Bc6 {[%clk 0:00:41]} 32. Ng5 {[%clk 0:00:31]}  Ra4 {[%clk 0:00:40]} 33. Kh3 {[%clk 0:00:19]}  Bd5 {[%clk 0:00:32]} 34. Bc5 {[%clk 0:00:16]}  Rc8 {[%clk 0:00:31]} 35. b4 {[%clk 0:00:15]}  Ra1 {[%clk 0:00:30]} 36. Kh2 {[%clk 0:00:14]}  Bc4 {[%clk 0:00:18]} 37. Qf4 {[%clk 0:00:13]}  f6 {[%clk 0:00:19]} 38. Nh3 {[%clk 0:00:13]}  Bd5 {[%clk 0:00:18]} 39. Qd6 {[%clk 0:00:11]}  Rc6 {[%clk 0:00:13]} 40. Qd8+ {[%clk 0:00:11]}  Kh7 {[%clk 0:00:14]} 41. Nf4 {[%clk 0:00:11]}  Be4 {[%clk 0:00:09]} 42. f3 {[%clk 0:00:10]}  Bf5 {[%clk 0:00:09]} 43. Qd7 {[%clk 0:00:10]}  e5 {[%clk 0:00:09]} 44. Nd5 {[%clk 0:00:09]}  Rd1 {[%clk 0:00:08]} 45. Qxb7 {[%clk 0:00:08]}  Re6 {[%clk 0:00:05]} 46. Ne3 {[%clk 0:00:08]}  Rd2 {[%clk 0:00:04]} 47. Nxf5 {[%clk 0:00:08]}  gxf5 {[%clk 0:00:05]} 48. Qf7 {[%clk 0:00:08]}  e4 {[%clk 0:00:02]} 49. Qxe6 {[%clk 0:00:07]} 1-0


[Site "https://www.chess.com"]

[Event "Titled Tuesday Blitz December 06 Early 2022"]
[White "Jobava, Baadur"]
[Black "Korchmar, Vasiliy"]
[WhiteFideId "13601520"]
[BlackFideId "24131750"]
[WhiteElo "2582"]
[BlackElo "2370"]
[Result "1-0"]
[Round "03"]
[TimeControl "180+1"]
[Date "2022.12.06"]
[WhiteClock "0:00:48"]
[BlackClock "0:01:00"]

1. b3 {[%clk 0:03:00]}  d5 {[%clk 0:02:59]} 2. Bb2 {[%clk 0:03:01]}  Bg4 {[%clk 0:02:59]} 3. f3 {[%clk 0:03:01]}  Bh5 {[%clk 0:02:58]} 4. e3 {[%clk 0:03:02]}  e6 {[%clk 0:02:53]} 5. d4 {[%clk 0:03:02]}  Nf6 {[%clk 0:02:47]} 6. Nc3 {[%clk 0:03:00]}  c5 {[%clk 0:02:36]} 7. Nge2 {[%clk 0:03:00]}  Nc6 {[%clk 0:02:24]} 8. Qd2 {[%clk 0:03:00]}  Rc8 {[%clk 0:02:21]} 9. O-O-O {[%clk 0:02:51]}  cxd4 {[%clk 0:02:17]} 10. Nxd4 {[%clk 0:02:46]}  Bb4 {[%clk 0:02:13]} 11. a3 {[%clk 0:02:42]}  Ba5 {[%clk 0:02:12]} 12. Nxc6 {[%clk 0:02:40]}  bxc6 {[%clk 0:02:11]} 13. g4 {[%clk 0:02:35]}  Bg6 {[%clk 0:02:10]} 14. h4 {[%clk 0:02:36]}  h5 {[%clk 0:02:04]} 15. g5 {[%clk 0:02:35]}  Nd7 {[%clk 0:02:04]} 16. Bd3 {[%clk 0:01:54]}  O-O {[%clk 0:02:03]} 17. Kb1 {[%clk 0:01:52]}  c5 {[%clk 0:01:59]} 18. Bxg6 {[%clk 0:01:28]}  fxg6 {[%clk 0:02:00]} 19. f4 {[%clk 0:01:19]}  Kh7 {[%clk 0:01:56]} 20. Qe2 {[%clk 0:01:12]}  c4 {[%clk 0:01:46]} 21. b4 {[%clk 0:01:10]}  Bb6 {[%clk 0:01:45]} 22. Na4 {[%clk 0:00:54]}  a5 {[%clk 0:01:41]} 23. e4 {[%clk 0:00:54]}  axb4 {[%clk 0:01:40]} 24. exd5 {[%clk 0:00:51]}  exd5 {[%clk 0:01:25]} 25. Rxd5 {[%clk 0:00:51]}  c3 {[%clk 0:01:19]} 26. Rhd1 {[%clk 0:00:50]}  Rf7 {[%clk 0:01:00]} 27. f5 {[%clk 0:00:48]} 1-0


[Site "https://www.chess.com"]